bitfinex-derivatives/quotes_ETHF0:USTF0_20241007
["timestamp","ask_amount","ask_price","bid_price","bid_amount"]
[1728327263683,4.42,2423.1,2422.5,40.8]
[1728327264179,4.0397,2423.5,2422.8,1.03198]
[1728327264385,4.0397,2423.5,2423.4,0.4127]
[1728327264583,3.2078,2423.5,2423.4,0.4127]
[1728327266181,3.2078,2423.5,2422.8,4.0664]
[1728327266182,3.62049,2423.5,2423.2,0.41272]
[1728327266490,3.2078,2423.5,2423.4,0.4127]
[1728327266988,3.2078,2423.5,2422.8,4.0664]
[1728327267484,3.2078,2423.5,2422.9,1.03197]
[1728327267690,3.2078,2423.5,2423.4,0.4127]
[1728327269790,3.2078,2424.4,2423.4,54.1342]
[1728327269989,3.2078,2424.4,2424.2,0.41256]
[1728327270292,4.42,2424.9,2423.7,3.2078]
[1728327270293,0.41251,2424.6,2424.3,0.41254]
[1728327270590,3.2078,2424.8,2424.6,0.41249]
[1728327270790,3.62026,2424.8,2424.6,0.41249]
[1728327270984,3.2078,2424.8,2424.1,1.03143]
[1728327271180,3.2078,2424.8,2424.7,0.41248]
[1728327271382,3.2078,2424.8,2424.3,3.2078]
[1728327271591,3.2078,2424.8,2424.7,0.41248]
[1728327271794,3.2078,2425.2,2424.4,40.8]
[1728327272091,1.6378,2425.4,2424.6,4.23903]
[1728327272290,1.6378,2425.4,2424.6,3.2078]
[1728327272598,4.42,2425.0,2424.4,40.8]
[1728327272892,0.41251,2424.5,2424.4,40.8]
[1728327273093,4.23911,2424.5,2423.9,0.8151]
[1728327273283,0.4126,2424.0,2423.4,4.23953]
[1728327273485,3.2078,2424.2,2423.2,43.48671]
[1728327273691,0.41263,2423.9,2423.2,43.48671]
[1728327273986,1.0315,2424.0,2423.2,42.4549]
[1728327274196,3.2078,2424.2,2423.6,0.41266]
[1728327274197,0.41263,2423.8,2423.6,0.41266]
[1728327274383,0.41262,2423.9,2423.7,0.41264]
[1728327274585,3.2078,2424.2,2423.4,1.03176]
[1728327274896,3.2078,2424.2,2424.1,0.41258]
[1728327275492,3.2078,2424.8,2424.1,4.1248]
[1728327275793,3.2078,2424.8,2424.2,0.41256]
[1728327275987,3.2078,2424.8,2424.7,0.41248]
[1728327276186,3.2078,2424.8,2424.6,0.41249]
[1728327276187,3.62028,2424.8,2424.6,0.41249]
[1728327276383,3.2078,2424.8,2424.6,0.41249]
[1728327276581,3.2078,2424.8,2424.3,40.8]
[1728327276785,3.2078,2424.8,2424.7,0.41248]
[1728327277287,3.2078,2424.8,2424.6,0.41249]
[1728327277288,3.62027,2424.8,2424.6,0.41249]
[1728327277492,3.2078,2424.8,2424.7,0.41248]
[1728327277681,3.2078,2424.8,2424.2,0.8879]
[1728327277885,0.41248,2424.7,2424.2,0.8879]
[1728327278089,3.2078,2424.8,2424.2,0.8879]
[1728327278294,3.2078,2424.8,2424.6,0.41249]
[1728327278295,3.62028,2424.8,2424.6,0.41249]
[1728327278693,0.41248,2424.7,2424.6,0.41249]
[1728327278894,3.2078,2424.8,2424.2,0.8879]
[1728327279096,3.62027,2424.8,2424.3,0.41255]
[1728327279284,0.41245,2424.9,2424.7,0.41247]
[1728327279492,3.2078,2425.1,2425.0,0.41243]
[1728327279686,6.31653,2425.6,2425.1,0.41241]
[1728327279687,4.23869,2425.5,2425.1,0.41241]
[1728327279890,0.41238,2425.3,2424.7,1.03121]
[1728327280195,3.2078,2425.5,2425.3,0.41237]
[1728327280391,3.2078,2425.5,2424.8,1.03116]
[1728327280594,0.41237,2425.4,2425.3,0.41237]
[1728327280788,3.2078,2425.5,2424.8,1.03116]
[1728327280988,3.62014,2425.5,2424.9,1.03112]
[1728327281296,3.62014,2425.5,2425.4,0.41236]
[1728327281495,3.62014,2425.5,2424.9,0.8797]
[1728327281496,3.2078,2425.5,2424.9,0.8797]
[1728327281794,0.41236,2425.4,2424.9,0.8797]
[1728327281994,3.2078,2425.5,2424.9,0.8797]
[1728327282295,3.62015,2425.5,2425.4,0.41236]
[1728327282799,3.2078,2425.5,2425.4,0.41236]
[1728327283094,4.0343,2425.8,2425.4,0.41235]
[1728327283286,0.41237,2425.4,2425.2,0.41238]
[1728327283484,0.41237,2425.4,2425.3,0.41238]
[1728327283996,0.41237,2425.4,2424.9,4.0875]
[1728327284192,4.0343,2425.8,2425.0,1.03108]
[1728327284401,0.41235,2425.5,2425.4,0.41235]
[1728327284599,0.41237,2425.4,2425.3,0.41237]
[1728327284895,0.41243,2425.0,2424.9,1.29213]
[1728327285093,0.41242,2425.1,2425.0,0.41242]
[1728327285298,3.62021,2425.2,2425.1,0.41241]
[1728327285491,0.41242,2425.1,2425.0,0.41241]
[1728327285690,3.2078,2425.2,2424.6,1.03125]
[1728327285691,3.62021,2425.2,2425.1,0.41241]
[1728327285992,0.41242,2425.1,2425.0,0.41242]
[1728327286198,3.6202,2425.2,2425.1,0.41241]
[1728327286696,3.2078,2425.2,2425.1,0.41241]
[1728327287094,3.2078,2425.5,2424.9,3.2078]
[1728327287395,3.2078,2425.5,2425.4,0.41236]
[1728327287895,0.41234,2425.6,2425.5,0.41234]
[1728327288087,0.8586,2426.2,2425.2,7.331]
[1728327288290,0.41225,2426.1,2426.0,0.41225]
[1728327288898,3.2078,2426.3,2425.6,41.8308]
[1728327289098,3.2078,2426.3,2426.2,0.41222]
[1728327289297,4.0313,2426.6,2426.5,0.41217]
[1728327289496,0.41215,2426.7,2426.1,1.03059]
[1728327289699,0.41215,2426.7,2426.6,0.41216]
[1728327289892,0.41215,2426.7,2426.0,4.38530112]
[1728327289893,4.42,2426.7,2426.0,4.38530112]
[1728327290198,3.2078,2426.5,2425.8,0.8552]
[1728327290499,4.23826,2426.5,2425.8,0.8552]
[1728327290699,4.23826,2426.5,2425.8,1.88591]
[1728327290700,0.41219,2426.4,2425.8,1.88591]
[1728327291002,0.41222,2426.3,2426.2,0.41222]
[1728327291203,3.2078,2426.5,2425.8,0.8552]
[1728327291392,3.2078,2426.5,2425.9,1.0307]
[1728327291592,0.4122,2426.4,2426.2,0.41221]
[1728327291802,0.4122,2426.4,2425.9,1.0307]
[1728327291803,0.4122,2426.4,2426.3,0.41221]
[1728327292400,0.41221,2426.3,2426.2,0.41221]
[1728327292695,0.4122,2426.4,2426.3,0.4122]
[1728327293203,3.61997,2426.5,2426.4,0.41219]
[1728327293400,3.61998,2426.5,2426.4,0.41219]
[1728327294894,0.41218,2426.5,2426.4,0.41219]
[1728327295096,4.046,2426.8,2426.0,1.03064]
[1728327295292,0.41215,2426.7,2426.6,0.41215]
[1728327295490,3.2078,2426.8,2426.2,1.03055]
[1728327295692,0.41217,2426.6,2426.5,0.41217]
[1728327296491,0.41224,2426.2,2426.1,0.41223]
[1728327296696,1.03048,2426.4,2425.8,4.063]
[1728327296903,0.41224,2426.2,2426.1,0.41223]
[1728327297298,1.03048,2426.4,2425.8,4.063]
[1728327297499,0.41232,2425.7,2425.6,0.41231]
[1728327297695,3.2078,2426.1,2425.4,1.03088]
[1728327298098,0.41231,2425.8,2425.7,0.4123]
[1728327298301,0.41232,2425.7,2425.6,0.41232]
[1728327298497,4.23844,2426.1,2425.2,4.23876]
[1728327298700,7.6278,2425.8,2425.1,41.6143]
[1728327299004,1.03078,2425.7,2425.1,1.84532]
[1728327299400,3.2078,2425.8,2425.2,1.03098]
[1728327299601,0.41235,2425.5,2425.4,0.41235]
[1728327299807,0.41232,2425.7,2425.6,0.41231]
[1728327300100,0.41232,2425.7,2425.4,0.41235]
[1728327300101,0.41235,2425.5,2425.4,0.41235]
[1728327300305,3.2078,2425.8,2425.1,1.84531]
[1728327300512,0.41233,2425.7,2425.6,0.41232]
[1728327300714,3.62009,2425.8,2425.7,0.41231]
[1728327301000,3.2078,2425.8,2425.7,0.41231]
[1728327301208,4.42,2426.8,2425.7,10.1224]
[1728327301209,3.2078,2426.5,2425.7,10.1224]
[1728327301507,3.2078,2426.5,2426.4,0.41217]
[1728327302001,3.2078,2426.5,2425.8,4.9218]
[1728327302401,3.2078,2426.5,2425.9,4.63036824]
[1728327302597,3.2078,2426.5,2425.8,4.9218]
[1728327302903,0.4122,2426.4,2426.2,0.41222]
[1728327303098,3.2078,2426.5,2425.8,4.9218]
[1728327303099,0.41221,2426.3,2425.8,4.9218]
[1728327303303,3.2078,2426.5,2425.8,4.9218]
[1728327303604,0.41221,2426.3,2426.1,0.41223]
[1728327303806,3.2078,2426.5,2425.8,4.9218]
[1728327304011,3.61998,2426.5,2426.3,0.4122]
[1728327304310,3.2078,2426.5,2425.8,4.9218]
[1728327304507,0.41222,2426.3,2425.8,5.95253]
[1728327304720,0.41222,2426.3,2426.1,0.41223]
[1728327304903,3.2078,2426.5,2425.8,4.9218]
[1728327305206,3.2078,2426.5,2426.3,0.41219]
[1728327305397,3.2078,2426.5,2425.2,5.26976]
[1728327305602,4.23826,2426.5,2425.5,3.2078]
[1728327305803,4.23826,2426.5,2425.8,1.03071]
[1728327305804,0.41221,2426.3,2425.8,1.03071]
[1728327306002,4.23826,2426.5,2426.1,0.41223]
[1728327306202,4.23826,2426.5,2425.5,5.26953]
[1728327306203,0.41224,2426.1,2426.0,0.41225]
[1728327306402,3.2078,2426.2,2425.3,1.7439]
[1728327306602,4.42,2426.3,2425.3,0.8831]
[1728327306603,3.2078,2425.9,2425.3,0.8831]
[1728327306911,3.2078,2425.9,2425.3,0.41238]
[1728327306912,0.41235,2425.5,2425.3,0.41238]
[1728327307114,0.41235,2425.5,2425.1,0.41241]
[1728327307415,1.03093,2425.4,2425.0,0.41242]
[1728327307603,0.41243,2425.0,2424.9,0.41244]
[1728327307803,1.03095,2425.3,2425.0,0.41242]
[1728327307804,0.41241,2425.2,2425.0,0.41242]
[1728327308004,0.41241,2425.1,2425.0,0.41242]
[1728327308312,4.106,2425.5,2424.8,0.8608]
[1728327308515,1.03091,2425.4,2424.8,0.8608]
[1728327308712,1.03106,2425.1,2424.7,1.29557]
[1728327308917,3.2078,2425.2,2424.3,3.2078]
[1728327309104,8.65882,2425.2,2424.3,3.2078]
[1728327309309,1.03105,2425.1,2424.7,0.41247]
[1728327309512,0.41246,2424.8,2424.6,0.41248]
[1728327309711,1.03105,2425.1,2424.3,44.0078]
[1728327309916,0.41249,2424.7,2424.3,44.0078]
[1728327310107,0.41247,2424.8,2424.6,0.41249]
[1728327310409,0.41247,2424.8,2424.3,44.0078]
[1728327310410,7.6278,2425.2,2424.3,44.0078]
[1728327310704,7.6278,2425.2,2424.3,3.2078]
[1728327310705,8.65883,2425.2,2424.3,3.2078]
[1728327310912,0.41247,2424.8,2424.7,0.41247]
[1728327311103,0.41245,2424.9,2424.8,0.41246]
[1728327311711,1.03105,2425.1,2425.0,0.41241]
[1728327311712,0.41242,2425.1,2425.0,0.41241]
[1728327311919,3.62021,2425.2,2425.1,0.41241]
[1728327312114,3.2078,2425.2,2425.1,0.41241]
[1728327312312,3.2078,2425.2,2424.8,1.03116]
[1728327312511,4.2388,2425.2,2424.4,40.8]
[1728327312706,0.41248,2424.8,2424.7,0.41247]
[1728327313009,0.41243,2425.1,2425.0,0.41242]
[1728327313410,3.6202,2425.2,2425.1,0.41241]
[1728327313815,3.62021,2425.2,2425.1,0.41241]
[1728327314110,0.41243,2425.1,2425.0,0.41242]
[1728327314310,3.2078,2425.2,2424.5,1.03127]
[1728327314517,3.2078,2425.2,2424.4,40.8]
[1728327314706,0.41251,2424.5,2424.4,0.41252]
[1728327314911,7.6278,2424.9,2424.0,0.8984]
[1728327315112,0.41258,2424.1,2423.6,2.91968]
[1728327315320,3.2078,2424.5,2423.6,2.91968]
[1728327315512,0.41256,2424.3,2424.2,0.41256]
[1728327316016,1.88534,2424.4,2423.7,1.03163]
[1728327316208,0.854,2424.4,2423.9,1.03153]
[1728327316406,0.41255,2424.3,2424.2,0.41256]
[1728327316623,0.41258,2424.2,2424.0,0.41258]
[1728327316908,8.4818,2424.5,2423.2,5.27146]
[1728327317114,3.2078,2424.2,2424.1,0.41258]
[1728327317315,3.2078,2424.2,2423.5,4.67191275]
[1728327317507,0.41264,2423.8,2423.7,0.41265]
[1728327317716,0.41262,2423.9,2423.8,0.41263]
[1728327317915,0.41262,2423.9,2423.4,1.03174]
[1728327317916,0.41264,2423.8,2423.7,0.41264]
[1728327318315,3.2078,2423.9,2423.3,1.85769]
[1728327318516,0.41265,2423.7,2423.3,1.85769]
[1728327318816,0.41265,2423.7,2423.1,1.03186]
[1728327318817,0.41268,2423.6,2423.5,0.41268]
[1728327319005,1.03163,2423.7,2423.4,0.41269]
[1728327319206,4.23936,2423.9,2423.4,0.41269]
[1728327319207,0.4127,2423.5,2423.4,0.41269]
[1728327319609,0.41268,2423.6,2423.5,0.41268]
[1728327319809,0.41265,2423.8,2423.7,0.41265]
[1728327320007,3.2078,2424.2,2423.0,3.2078]
[1728327320315,3.2078,2424.2,2423.4,3.2078]
[1728327320523,3.2078,2424.2,2423.5,0.8802]
[1728327320820,0.41258,2424.1,2424.0,0.41259]
[1728327321015,3.2078,2424.2,2423.5,0.8802]
[1728327321217,0.41264,2423.8,2423.7,0.41264]
[1728327321520,0.41267,2423.6,2423.5,0.41267]
[1728327321726,3.2078,2423.9,2423.0,3.2078]
[1728327322016,3.2078,2423.9,2422.9,0.8802]
[1728327322017,0.41271,2423.4,2423.3,0.41271]
[1728327322209,0.41271,2423.4,2423.1,0.41274]
[1728327322210,0.41274,2423.2,2423.1,0.41274]
[1728327322715,0.41282,2422.8,2422.6,0.41282]
[1728327323016,1.03211,2422.6,2422.2,0.4129]
[1728327323215,1.03211,2422.6,2421.5,3.62081]
[1728327323216,0.41299,2421.8,2421.5,3.62081]
[1728327323422,1.03227,2422.2,2421.5,3.62081]
[1728327323423,0.41291,2422.2,2421.5,3.2078]
[1728327323713,0.41284,2422.6,2421.8,1.0324]
[1728327323919,5.31413,2422.7,2422.0,0.41294]
[1728327324227,4.9013,2422.7,2421.9,1.0324]
[1728327324421,4.9013,2422.7,2422.6,0.41284]
[1728327324824,15.0293,2422.7,2421.7,4.24026]
[1728327325123,0.4129,2422.3,2422.1,0.41292]
[1728327325326,3.2078,2422.4,2421.7,4.29972516]
[1728327325530,5.45214,2422.5,2421.8,0.41297]
[1728327325531,0.41295,2422.0,2421.8,0.41297]
[1728327325723,3.2078,2422.1,2421.2,3.2078]
[1728327325923,3.2078,2422.1,2421.1,40.8]
[1728327325924,3.2078,2422.1,2422.0,0.41294]
[1728327326127,2.72558,2422.7,2421.1,47.28541]
[1728327326128,3.2078,2422.4,2422.3,0.41289]
[1728327327325,3.2078,2422.4,2422.2,0.41289]
[1728327327526,3.62068,2422.4,2422.2,0.41289]
[1728327327729,4.128,2422.3,2421.4,1.03259]
[1728327328027,9.2078,2422.4,2422.0,0.41293]
[1728327328028,0.41291,2422.2,2422.0,0.41293]
[1728327328223,3.2078,2422.4,2421.4,7.6278]
[1728327328424,3.2078,2422.4,2422.3,0.41289]
[1728327328831,3.2078,2422.7,2422.3,4.54089]
[1728327329131,3.2078,2423.0,2422.9,0.41279]
[1728327329333,0.8702,2423.2,2422.9,0.41279]
[1728327329528,0.8702,2423.2,2422.8,0.4128]
[1728327329529,0.41278,2423.0,2422.8,0.4128]
[1728327329740,3.2078,2423.0,2422.8,0.4128]
[1728327329946,0.41279,2422.9,2422.7,0.41281]
[1728327330146,3.2078,2423.0,2422.5,40.8]
[1728327330347,0.41281,2422.8,2422.6,0.41283]
[1728327330838,0.41281,2422.8,2422.5,40.8]
[1728327331035,3.2078,2422.7,2421.4,4.42]
[1728327331241,3.2078,2422.4,2421.6,1.924]
[1728327331437,3.62068,2422.4,2422.2,0.41289]
[1728327331839,3.62068,2422.4,2421.8,1.03242]
[1728327332042,3.2078,2422.4,2421.8,3.2078]
[1728327332351,3.2078,2422.4,2422.3,0.41289]
[1728327332643,0.41286,2422.5,2422.0,1.44529]
[1728327332844,0.41286,2422.5,2422.0,1.03235]
[1728327332845,3.2078,2422.3,2422.0,1.03235]
[1728327333033,3.2078,2422.3,2422.2,0.4129]
[1728327333241,3.2078,2422.4,2422.3,0.41288]
[1728327334042,3.62067,2422.4,2422.3,0.41288]
[1728327334342,0.41293,2422.1,2422.0,0.41293]
[1728327334642,3.62074,2422.1,2421.6,0.8915]
[1728327334847,3.62074,2422.1,2422.0,0.41294]
[1728327335055,3.2078,2422.1,2422.0,0.41294]
[1728327336440,3.62073,2422.1,2422.0,0.41294]
[1728327336846,3.2078,2422.1,2422.0,0.41294]
[1728327337043,3.2078,2422.1,2421.6,0.8915]
[1728327337241,3.2078,2421.8,2421.7,0.41299]
[1728327337548,3.2078,2422.1,2422.0,0.41293]
[1728327339146,3.2078,2422.1,2421.9,0.41295]
[1728327339338,4.24012,2422.1,2421.4,1.91259]
[1728327339539,3.2078,2422.1,2422.0,0.41294]
[1728327341536,1.29546,2422.5,2421.8,0.8865]
[1728327341537,0.41287,2422.4,2421.9,0.41296]
[1728327341737,0.41287,2422.4,2422.3,0.41289]
[1728327341947,4.0904,2422.5,2422.4,0.41287]
[1728327341948,3.2078,2422.5,2422.4,0.41287]
[1728327342152,0.41279,2422.9,2422.8,0.4128]
[1728327342342,1.7406,2423.1,2422.1,5.27241]
[1728327342539,3.2078,2423.4,2423.3,0.41272]
[1728327342744,3.6205,2423.4,2422.9,1.03194]
[1728327342948,3.2078,2423.7,2422.9,1.03194]
[1728327343247,3.62046,2423.7,2423.5,0.41268]
[1728327343440,3.62046,2423.7,2423.6,0.41267]
[1728327343441,3.2078,2423.7,2423.6,0.41267]
[1728327344046,1.87483,2424.0,2423.3,1.03177]
[1728327344047,3.2078,2424.0,2423.3,1.03177]
[1728327344242,3.2078,2424.0,2423.9,0.41262]
[1728327344638,3.2078,2424.0,2423.5,1.0317]
[1728327344639,3.6204,2424.0,2423.8,0.41263]
[1728327344841,3.2078,2424.0,2423.8,0.41262]
[1728327345147,0.41263,2423.9,2423.6,0.41265]
[1728327345352,0.41263,2423.9,2423.1,1.03189]
[1728327345353,3.62041,2424.0,2423.8,0.41263]
[1728327345650,3.2078,2424.0,2423.1,5.23615583]
[1728327345952,0.41273,2423.3,2423.1,0.41275]
[1728327346352,1.03172,2423.5,2422.5,5.96781]
[1728327346540,1.678,2423.6,2422.5,5.96781]
[1728327346541,0.41275,2423.2,2423.0,0.41277]
[1728327346742,0.41275,2423.2,2422.9,0.41278]
[1728327346941,0.41275,2423.2,2422.6,40.8]
[1728327347142,3.2078,2423.4,2422.5,1.7279]
[1728327347342,3.2078,2423.4,2422.8,0.41279]
[1728327347343,0.41276,2423.1,2422.8,0.41279]
[1728327347542,0.41277,2423.0,2422.8,0.41279]
[1728327347743,1.03182,2423.3,2422.5,42.5279]
[1728327347947,0.41281,2422.8,2422.6,0.41283]
[1728327348149,0.41282,2422.7,2422.5,1.24754]
[1728327348345,0.4128,2422.8,2422.6,0.41283]
[1728327348544,0.41282,2422.7,2422.5,1.24754]
[1728327349458,0.41281,2422.8,2422.6,0.41282]
[1728327349751,4.23982,2422.8,2422.1,0.8915]
[1728327349953,0.41285,2422.5,2422.3,0.41288]
[1728327350442,0.834,2422.7,2422.0,0.886]
[1728327350648,0.41287,2422.5,2422.3,0.41288]
[1728327350843,0.41288,2422.4,2422.2,0.41289]
[1728327351048,0.41288,2422.4,2422.1,0.41292]
[1728327351252,3.2078,2422.5,2421.7,0.8915]
[1728327351445,3.2078,2421.8,2421.3,1.03262]
[1728327351648,3.2078,2421.8,2421.4,40.8]
[1728327351847,3.2078,2421.8,2421.7,0.41299]
[1728327355843,1.93198,2422.2,2422.0,0.41293]
[1728327355844,1.31261,2422.2,2422.0,0.41293]
[1728327356049,3.2078,2422.3,2422.2,0.4129]
[1728327356248,3.62059,2422.9,2422.6,0.41284]
[1728327356663,3.2078,2423.7,2422.7,4.1272]
[1728327356953,3.2078,2423.7,2423.5,0.41267]
[1728327357151,0.8645,2424.0,2423.6,0.41267]
[1728327357349,0.8645,2424.0,2423.7,0.41265]
[1728327357549,0.8645,2424.0,2423.3,44.0078]
[1728327357948,1.27711,2424.0,2423.6,0.41265]
[1728327358146,1.27711,2424.0,2423.6,0.41266]
[1728327358147,0.8645,2424.0,2423.6,0.41266]
[1728327358661,0.41262,2423.9,2423.6,0.41266]
[1728327358854,0.41264,2423.8,2423.5,0.41267]
[1728327359157,0.41262,2423.9,2423.5,0.41267]
[1728327359355,4.23941,2423.8,2423.3,3.2078]
[1728327359555,4.23941,2423.8,2423.3,3.62052]
[1728327359556,0.41268,2423.6,2423.3,3.62052]
[1728327359953,0.41268,2423.6,2423.3,3.62051]
[1728327360256,4.23941,2423.8,2423.3,3.2078]
[1728327360558,4.23941,2423.8,2422.3,7.55587193]
[1728327360559,7.6278,2423.4,2422.1,4.27926193]
[1728327360765,7.6278,2423.1,2422.1,5.10878]
[1728327360949,3.2078,2422.8,2422.4,3.2078]
[1728327361149,3.62061,2422.8,2422.7,0.41282]
[1728327361358,3.2078,2423.1,2422.5,1.03214]
[1728327361557,0.878,2423.3,2422.4,3.2078]
[1728327361759,3.2078,2423.4,2423.3,0.41272]
[1728327362258,3.2078,2423.4,2423.1,0.41275]
[1728327362259,0.41273,2423.3,2423.1,0.41275]
[1728327362454,3.2078,2423.4,2423.3,0.41272]
[1728327362866,3.62051,2423.4,2423.2,0.41272]
[1728327363054,3.62051,2423.4,2422.9,1.03197]
[1728327363255,3.62051,2423.4,2423.2,0.41272]
[1728327363461,3.2078,2423.4,2422.7,4.58456373]
[1728327363654,0.41272,2423.3,2423.1,0.41274]
[1728327363849,3.2078,2423.4,2423.1,0.41274]
[1728327364062,0.41273,2423.2,2423.1,0.41274]
[1728327364562,3.2078,2423.4,2423.1,0.41274]
[1728327364764,0.41273,2423.2,2423.1,0.41274]
[1728327365165,1.0318,2423.3,2422.5,1.03214]
[1728327365366,3.2078,2423.1,2423.0,0.41276]
[1728327365757,0.8403,2423.5,2423.0,4.1272]
[1728327365758,3.2078,2423.4,2423.0,4.1272]
[1728327365955,3.62051,2423.4,2423.2,0.41272]
[1728327366159,3.62051,2423.4,2423.3,0.41272]
[1728327366360,3.2078,2423.4,2422.9,1.03193]
[1728327366664,3.2078,2423.4,2422.7,1.90343]
[1728327366665,0.4127,2423.4,2423.2,0.41272]
[1728327366974,0.8403,2423.5,2422.8,1.03201]
[1728327367269,0.41272,2423.3,2423.2,0.41273]
[1728327367463,7.6278,2423.4,2422.7,0.8714]
[1728327367761,0.4128,2422.9,2422.2,3.2078]
[1728327367956,0.4128,2422.9,2422.5,0.41285]
[1728327367957,0.41284,2422.6,2422.5,0.41285]
[1728327368567,0.41284,2422.6,2422.2,3.2078]
[1728327368863,0.41284,2422.6,2422.4,1.22606]
[1728327369157,0.41282,2422.7,2422.6,0.41283]
[1728327369363,3.2078,2422.8,2422.7,0.41282]
[1728327369364,0.41282,2422.8,2422.7,0.41282]
[1728327370062,3.2078,2423.4,2422.7,10.1272]
[1728327370259,3.2078,2423.4,2422.5,3.2078]
[1728327370260,3.2078,2423.4,2423.3,0.41272]
[1728327370662,3.2078,2423.4,2423.2,0.41273]
[1728327370663,0.41273,2423.3,2423.2,0.41273]
[1728327370863,3.2078,2423.4,2422.9,0.8593]
[1728327371165,0.41273,2423.3,2423.2,0.41273]
[1728327371366,3.62052,2423.4,2423.3,0.41272]
[1728327371764,3.2078,2423.4,2423.3,0.41272]
[1728327371961,3.6205,2423.4,2423.3,0.41272]
[1728327372163,3.2078,2423.4,2423.3,0.41272]
[1728327372367,3.2078,2423.4,2422.9,0.8593]
[1728327372565,0.41273,2423.3,2423.2,0.41273]
[1728327373060,3.2078,2423.4,2422.9,0.8593]
[1728327373260,3.62051,2423.4,2423.3,0.41272]
[1728327373469,3.2078,2423.4,2423.3,0.41272]
[1728327374359,0.8686,2424.0,2423.4,1.03176]
[1728327374556,3.2078,2424.1,2423.1,7.6278]
[1728327374760,0.41256,2424.3,2423.8,1.03158]
[1728327374969,0.41259,2424.1,2424.0,0.4126]
[1728327375265,3.2078,2424.5,2423.6,0.8159]
[1728327375466,4.0806,2424.9,2424.0,3.2078]
[1728327375663,3.62025,2424.9,2424.8,0.41246]
[1728327375868,3.2078,2424.9,2424.8,0.41246]
[1728327376359,3.2078,2425.4,2424.8,4.124]
[1728327376558,3.2078,2425.4,2424.6,5.05494]
[1728327376768,0.4124,2425.2,2425.0,0.41242]
[1728327377264,3.2078,2425.4,2425.0,0.41242]
[1728327377658,0.4124,2425.2,2425.0,0.41242]
[1728327378060,3.2078,2425.4,2424.6,5.05493]
[1728327378260,3.62016,2425.4,2425.2,0.41239]
[1728327378474,3.2078,2425.4,2425.2,0.41239]
[1728327378964,0.41236,2425.5,2425.3,0.41238]
[1728327379268,4.9524,2425.7,2424.8,1.03116]
[1728327379566,0.41237,2425.4,2425.2,0.41238]
[1728327379770,7.6278,2425.4,2424.6,4.0237]
[1728327379955,7.6278,2425.4,2424.9,0.41244]
[1728327379956,0.41242,2425.1,2424.9,0.41244]
[1728327380162,0.4124,2425.2,2424.6,4.0237]
[1728327380362,3.2078,2425.7,2425.0,4.65405026]
[1728327380568,3.2078,2425.7,2425.6,0.41232]
[1728327380966,3.2078,2425.7,2425.6,4.53472]
[1728327381363,3.2078,2425.7,2425.4,0.865]
[1728327381562,3.2078,2425.7,2425.1,1.90914]
[1728327381563,3.2078,2425.7,2425.1,0.8781]
[1728327381768,0.41234,2425.6,2425.4,0.41236]
[1728327382068,3.2078,2425.7,2425.1,0.8781]
[1728327382269,3.2078,2425.7,2425.2,0.41238]
[1728327382464,0.41239,2425.3,2424.8,0.865]
[1728327382767,1.03086,2425.5,2424.9,4.39854536]
[1728327382971,3.2078,2425.4,2424.9,4.39854536]
[1728327383171,0.41235,2425.5,2425.2,0.41239]
[1728327383373,3.2078,2425.7,2424.8,0.865]
[1728327383574,0.4124,2425.2,2425.0,0.41242]
[1728327383774,3.2078,2425.4,2424.9,0.41243]
[1728327383974,0.4124,2425.2,2425.0,0.41242]
[1728327384178,3.62017,2425.4,2425.2,0.41239]
[1728327384478,3.62017,2425.4,2425.3,0.41238]
[1728327384479,3.2078,2425.4,2425.3,0.41238]
[1728327384676,3.62016,2425.4,2425.2,0.41238]
[1728327384871,3.2078,2425.4,2425.3,0.41238]
[1728327385070,3.2078,2425.7,2424.9,1.03112]
[1728327385675,3.2078,2425.7,2424.9,4.23892]
[1728327385877,3.2078,2425.7,2425.6,0.41233]
[1728327387076,4.0678,2426.3,2425.2,3.2078]
[1728327387274,0.41225,2426.1,2426.0,0.41225]
[1728327387474,0.4123,2425.8,2425.7,0.4123]
[1728327387680,5.09834,2426.3,2425.5,1.03086]
[1728327387880,4.48002,2426.3,2426.1,0.41223]
[1728327388076,4.0678,2426.3,2425.8,1.03074]
[1728327388271,3.2078,2426.3,2426.2,0.41222]
[1728327389279,3.2078,2426.3,2426.2,4.53382]
[1728327389874,1.6534,2426.8,2426.2,4.1216]
[1728327390083,0.41214,2426.8,2426.1,4.23839]
[1728327390378,0.41215,2426.7,2426.5,0.41216]
[1728327390774,4.23805,2427.0,2426.2,4.57783535]
[1728327390975,4.23805,2427.0,2426.1,0.8458]
[1728327391181,0.41216,2426.6,2426.1,0.8458]
[1728327391576,0.41218,2426.5,2426.3,0.4122]
[1728327391777,0.41217,2426.6,2426.3,0.4122]
[1728327391977,1.03033,2426.8,2426.1,0.8458]
[1728327392177,0.41217,2426.6,2426.1,0.8458]
[1728327392378,1.03033,2426.8,2426.5,0.41217]
[1728327392682,1.03027,2426.9,2426.6,0.41216]
[1728327392875,3.6199,2427.0,2426.8,0.41211]
[1728327393083,3.2078,2427.0,2426.9,0.41211]
[1728327393781,3.2078,2427.0,2426.9,4.53211]
[1728327394387,3.2078,2427.0,2426.8,0.41211]
[1728327394589,3.2078,2427.0,2426.9,0.41211]
[1728327394777,3.2078,2427.0,2426.4,3.2078]